[Event "2nd Serbia Open Masters 2022"]
[Site "Novi Sad"]
[Date "2022.07.01"]
[Round "4.37"]
[White "Nitish Belurkar"]
[Black "Karacsonyi, Gellert"]
[Result "1/2-1/2"]
[ECO "C02"]
[WhiteElo "2452"]
[BlackElo "2338"]
[Annotator "TA"]
[PlyCount "111"]
[EventDate "2022.06.28"]
[EventType "swiss"]
[EventCountry "SRB"]
[SourceTitle "playchess.com"]
[Source "ChessBase"]
[SourceQuality "1"]
[TimeControl "40/5400+30:900+30"]

{[%evp 10,111,10,-7,-15,-37,-12,-24,-11,-45,-15,-67,-39,-76,0,-69,156,177,177,-95,-107,-93,-62,-254,-229,-199,69,75,55,65,183,196,216,-47,375,378,452,252,211,118,106,113,175,166,172,168,191,189,204,124,132,109,117,97,112,120,298,252,275,238,244,259,333,320,285,0,0,8,8,0,0,0,0,0,0,0,0,0,0,0,0,0,0,0,0,0,0,0,0,0,0,0,0,0,0,0,0,0,0,0,0,0,0,0]} 1. e4 {[%emt 0:00:05]} e6 {[%emt 0:01:03]} 2. d4 {[%emt 0:00:08]} d5 {[%emt 0:00:05]} 3. e5 {[%emt 0:00:08]} c5 {[%emt 0:00:08]} 4. c3 {[%emt 0:00:04]} Nc6 {[%emt 0:00:22]} 5. Nf3 {[%emt 0:00:06]} Bd7 {[%emt 0:00:09]} 6. Bd3 {[%emt 0:00:21]} cxd4 {[%emt 0:02:51] C02: French: Advance Variation.} 7. O-O {[%emt 0:02:40] Nowadays more popular than 7.cxd4.} Qb6 {[%emt 0:03:55]} 8. Re1 {[%emt 0:00:42]} Nge7 {[%emt 0:06:20] Black has an edge.} 9. h4 {[%emt 0:01:02]} h6 {[%emt 0:03:14]} 10. h5 {[%emt 0:00:09]} (10. b3 $11) 10... a6 {[%emt 0:03:45]} 11. Nbd2 {[%emt 0:08:50] [#]} Nf5 $146 {[%emt 0:23:38]} (11... dxc3 $17 12. bxc3 Nc8) ({Predecessor:} 11... dxc3 12. bxc3 Nc8 13. Nb3 Qc7 14. a4 Nb6 15. Be3 Nc4 16. Bxc4 dxc4 17. Nc5 Rd8 {1-0 (31) Adhiban,B (2633)-Budisavljevic,L (2509) Ciutadella de Menorca 2022}) 12. g4 {[%emt 0:17:16]} (12. Rb1 $11) 12... Ne3 $2 {[%emt 0:06:30]} 13. fxe3 $16 {[%emt 0:06:59]} dxe3 {[%emt 0:00:10] [#]} 14. Kg2 $1 {[%emt 0:00:12]} exd2 $17 {[%emt 0:00:24]} 15. Qxd2 {[%emt 0:01:17]} O-O-O {[%emt 0:08:06]} 16. Qf4 $2 {[%emt 0:07:04] Against f6} ({White should try} 16. Qe2 $15) 16... f6 $1 $19 {[%emt 0:04:52]} 17. exf6 {[%emt 0:01:13]} e5 $2 {[%emt 0:05:01]} (17... gxf6 $19 {Hoping for ...e5.} 18. Qg3 e5) 18. Nxe5 $14 {[%emt 0:01:35]} Nxe5 {[%emt 0:00:29]} 19. Rxe5 {[%emt 0:14:46]} Bd6 {[%emt 0:17:22]} (19... Qc6 $14) 20. fxg7 $18 {[%emt 0:00:11]} Rhg8 {[%emt 0:00:07]} 21. Qf6 $2 {[%emt 0:05:13] [#]} ({White has to play} 21. Qxh6 $18 Qc7 22. Rf5 $1 (22. Rxd5 Bc6 $14) 22... Bxf5 23. Bxf5+ Kb8 24. Bg5) 21... Qc7 $2 {[%emt 0:01:41][%mdl 8192]} (21... Rgf8 $1 $15 {keeps the upper hand.} 22. gxf8=N (22. gxf8=Q Rxf8 23. Qxf8+ Bxf8 $15) 22... Rxf8 23. Qxf8+ Bxf8) 22. Re1 $1 {[%emt 0:15:59]} Bh2 {[%emt 0:03:53]} 23. Qh4 {[%emt 0:02:05] Against Qg3+} (23. Bxh6 $142 Qg3+ 24. Kh1) 23... Rxg7 {[%emt 0:02:10]} 24. Bg6 {[%emt 0:01:58]} (24. Qxh2 Rxg4+ 25. Kh1 Qxh2+ 26. Kxh2 Rdg8 $17) (24. g5 $1 $18 Be5 25. g6) 24... Bf4 $16 {[%emt 0:02:14]} 25. Kh3 {[%emt 0:04:19]} Rgg8 {[%emt 0:00:18]} (25... Rdg8 $16 {was necessary.}) 26. Bxf4 $1 $18 {[%emt 0:00:46]} Qxf4 {[%emt 0:00:02]} 27. Qg3 $36 {[%emt 0:00:23][%mdl 2048] Inhibits Qf3. White is in control.} Rgf8 {[%emt 0:01:49]} 28. Rad1 {[%emt 0:02:01]} Qf2 {[%emt 0:00:02]} 29. Qxf2 {[%emt 0:01:24] Active counter play!} Rxf2 {[%emt 0:00:01]} 30. Kg3 {[%emt 0:00:59]} (30. Rxd5 $6 Bxg4+ 31. Kg3 Rxd5 $11) 30... Rdf8 {[%emt 0:00:27] ( -> ...R8f3+)} 31. Re3 {[%emt 0:00:24] Prevents R8f3+.} (31. Rxd5 $2 R8f3+ 32. Kh4 Rh2#) 31... Rxb2 {[%emt 0:01:21]} 32. Rxd5 {[%emt 0:01:41]} Rxa2 $2 {[%emt 0:01:11]} (32... Rf1 $16 {was called for.}) 33. Re7 $1 {[%emt 0:02:06]} Bc6 {[%emt 0:00:32]} 34. Bf5+ {[%emt 0:00:05]} Kb8 {[%emt 0:00:05]} 35. Rd6 {[%emt 0:00:04]} a5 {[%emt 0:01:27]} 36. Rxh6 {[%emt 0:00:26]} a4 {[%emt 0:00:01] [#]} 37. Rxc6 $2 {[%emt 0:02:21]} bxc6 {[%emt 0:00:12][%mdl 4096] Endgame KRR-KRB. The position is equal.} 38. h6 {[%emt 0:00:08]} a3 {[%emt 0:00:31] And now ...Ra1 would win.} 39. h7 {[%emt 0:00:16]} Ra1 {[%emt 0:01:19] White must now prevent ...a2.} 40. Be6 {[%emt 0:00:00] Threatens to win with Rg7.} (40. Rf7 $2 Rh8 41. Be6 Re1 $19) 40... Re1 {[%emt 0:00:00] aiming for ...Rh8.} (40... a2 $2 {[#]} 41. Bxa2 $1 Rh1 42. Rg7 $18) 41. Rg7 {[%emt 0:13:01] Rg8 is the strong threat.} Rxe6 {[%emt 0:02:43]} 42. Rg8 {[%emt 0:00:07]} Ree8 {[%emt 0:00:05]} 43. h8=Q {[%emt 0:00:10]} Rxg8 $11 {[%emt 0:00:04] KQ-KRR} 44. Qd4 {[%emt 0:02:59]} Rg6 {[%emt 0:09:55]} ({Don't play} 44... a2 45. Qb6+ Kc8 46. Qxc6+ (46. Qa6+ Kd7 $16) 46... Kb8 47. Qb5+ Kc7 48. Qc4+ Kb8 49. Qb5+ (49. Qxa2 Rg5 $16) 49... Kc7 50. Qa5+ Kb8 51. Qb6+ (51. Qxa2 Rg5 $16) 51... Kc8 52. Qa6+ Kb8 53. Qb6+ (53. Qxa2 Rg5 $16) 53... Kc8 54. Qc6+ (54. Qa6+ Kb8 $16) 54... Kb8 55. Qb6+ $16) 45. Qb6+ {[%emt 0:00:12]} Kc8 {[%emt 0:00:07]} 46. Qa6+ {[%emt 0:00:02]} Kd7 {[%emt 0:01:10]} 47. Qa7+ {[%emt 0:00:04]} Kc8 {[%emt 0:01:20]} 48. Qa8+ {[%emt 0:00:13]} Kd7 {[%emt 0:00:04]} 49. Qa7+ {[%emt 0:00:07]} Kc8 {[%emt 0:00:06]} 50. Qa6+ {[%emt 0:00:27]} Kd7 {[%emt 0:00:20]} 51. Qb7+ {[%emt 0:00:15]} Kd6 {[%emt 0:00:53]} 52. Qb4+ {[%emt 0:00:28]} Kd7 {[%emt 0:00:41]} 53. Qb7+ {[%emt 0:00:45]} Kd6 {[%emt 0:00:08]} 54. Qb4+ {[%emt 0:00:04]} Kd7 {[%emt 0:00:04]} 55. Qb7+ {[%emt 0:01:29]} Kd6 {[%emt 0:00:06]} 56. Qb4+ {[%emt 0:00:35] Black defended with fortune.  Weighted Error Value: White=0.46/Black=0.52} 1/2-1/2

[Event "2nd Serbia Open Masters 2022"]
[Site "Novi Sad"]
[Date "2022.07.01"]
[Round "4.38"]
[White "Srbis, Jurica"]
[Black "Hristodoulou, Panagiotis"]
[Result "1/2-1/2"]
[ECO "D37"]
[WhiteElo "2451"]
[BlackElo "2328"]
[Annotator "TA"]
[PlyCount "137"]
[EventDate "2022.06.28"]
[EventType "swiss"]
[EventCountry "SRB"]
[SourceTitle "playchess.com"]
[Source "ChessBase"]
[SourceQuality "1"]
[TimeControl "40/5400+30:900+30"]

{[%evp 13,137,4,6,5,8,1,13,10,21,4,10,0,0,0,3,-21,-14,-13,0,0,0,0,0,0,0,0,0,0,0,-5,0,-3,-2,-18,-8,-24,-24,-22,0,-12,-11,-17,-18,-70,-55,-68,-33,-95,-100,-92,-100,-100,-100,-101,-101,-120,-90,-93,-90,-108,-88,-158,-129,-138,-112,-231,-231,-231,-231,-231,-220,-353,-311,-791,-238,-238,-238,-238,-238,-238,-208,-238,-95,-109,-98,-109,-83,-83,-83,-100,-35,-35,0,0,0,0,0,0,0,0,0,0,0,0,0,0,0,0,0,0,0,0,0,0,0,0,0,-8,0,0,0,0,0,0,0,0]} 1. d4 {[%emt 0:00:02]} d5 {[%emt 0:06:37]} 2. c4 {[%emt 0:00:10]} e6 {[%emt 0:00:04]} 3. Nc3 {[%emt 0:00:24]} Be7 {[%emt 0:00:09]} 4. Nf3 {[%emt 0:04:56]} Nf6 {[%emt 0:00:10]} 5. Bf4 {[%emt 0:01:00]} O-O {[%emt 0:00:19]} 6. e3 {[%emt 0:00:10]} b6 {[%emt 0:00:06]} 7. cxd5 {[%emt 0:03:29]} Nxd5 {[%emt 0:00:11]} 8. Nxd5 {[%emt 0:00:42] D37: Queen's Gambit Declined: 5 Bf4.} Qxd5 {[%emt 0:00:03]} 9. a3 {[%emt 0:08:29]} Bd6 {[%emt 0:06:29]} 10. Bxd6 {[%emt 0:12:10]} cxd6 {[%emt 0:04:45]} 11. Bd3 {[%emt 0:02:13]} Ba6 {[%emt 0:04:40]} 12. e4 {[%emt 0:02:54]} Qb7 {[%emt 0:02:25]} 13. O-O {[%emt 0:04:11]} Nd7 {[%emt 0:07:08]} 14. Re1 {[%emt 0:08:01]} Bxd3 {[%emt 0:16:13]} 15. Qxd3 {[%emt 0:00:05] [#]} h6 $146 {[%emt 0:00:10]} ({Predecessor:} 15... Rfc8 16. e5 d5 17. Rac1 Rxc1 18. Rxc1 Rc8 19. Rc3 Rxc3 20. Qxc3 Nb8 21. h4 Qc6 {½-½ (30) Bryzgalin,K (2424)-Granovskiy,A (2282) Pardubice 2017}) 16. Nd2 {[%emt 0:07:17][%cal Bf3d2,Bd2f1,Bf1e3,Be3c2,Bc2b4,Bb4c6][%mdl 32]} b5 {[%emt 0:12:59]} 17. Nf1 {[%emt 0:02:17]} a5 {[%emt 0:11:59]} 18. Ne3 {[%emt 0:11:30]} a4 {[%emt 0:02:45]} 19. Rac1 {[%emt 0:09:26]} Rfc8 {[%emt 0:01:02]} 20. h3 {[%emt 0:03:31]} Rab8 {[%emt 0:03:48][%cal Ba8b8,Bb8c8,Bc8c4][%mdl 32]} 21. Nc2 {[%emt 0:07:05]} Rc4 {[%emt 0:01:03] And now ...Rbc8 would win.} 22. Nb4 {[%emt 0:02:33]} Rbc8 {[%emt 0:00:34]} 23. Rxc4 {[%emt 0:00:04]} Rxc4 {[%emt 0:00:23]} 24. d5 {[%emt 0:00:54]} e5 {[%emt 0:00:47]} 25. Nc6 {[%emt 0:01:41] Hoping for Na5.} Qc7 {[%emt 0:03:54] Inhibits Na5.} 26. Re2 {[%emt 0:03:02]} Nc5 {[%emt 0:02:21]} 27. Qf3 {[%emt 0:00:17]} Nb3 {[%emt 0:00:07]} 28. Qe3 {[%emt 0:02:34]} ({Better is} 28. Kh2 $11) 28... Nd4 $15 {[%emt 0:00:39]} 29. Nxd4 {[%emt 0:00:06]} Rxd4 {[%emt 0:00:06][%mdl 4096] Endgame KQR-KQR} 30. f4 {[%emt 0:00:47]} (30. Kh2 $15) 30... Rd1+ $17 {[%emt 0:05:11]} 31. Kh2 {[%emt 0:00:02]} exf4 {[%emt 0:00:19]} 32. Qxf4 {[%emt 0:00:03]} Qe7 $1 {[%emt 0:00:23]} 33. Re3 {[%emt 0:01:42]} Rd4 {[%emt 0:00:39]} 34. Kg1 {[%emt 0:01:24]} b4 {[%emt 0:03:13]} 35. axb4 {[%emt 0:00:36]} Rxb4 {[%emt 0:00:01]} 36. Re2 {[%emt 0:00:09]} h5 {[%emt 0:00:57][%cal Bh6h5,Bh5h4][%mdl 32]} 37. Kh2 {[%emt 0:01:49]} (37. Qg3 $142) 37... g6 {[%emt 0:00:12]} 38. Kg1 {[%emt 0:00:14]} Kg7 {[%emt 0:02:36]} 39. Kh2 {[%emt 0:00:46]} (39. Qg3 $17 Rxe4 40. Rxe4 Qxe4 41. Qxd6) 39... h4 $19 {[%emt 0:03:08]} 40. Kg1 {[%emt 0:00:00]} Qf6 {[%emt 0:00:00]} 41. Qc1 {[%emt 0:07:59]} Qe5 {[%emt 0:04:53]} 42. Qc2 {[%emt 0:00:55]} (42. Kh1 $142) 42... Qd4+ {[%emt 0:00:40]} 43. Kh1 $2 {[%emt 0:02:29]} (43. Kh2) 43... Rc4 $2 {[%emt 0:01:23]} (43... a3 {[%cal Rb4b2]} 44. b3 Qa1+ 45. Kh2 Rd4) 44. Qb1 {[%emt 0:00:02]} Qc5 {[%emt 0:00:34] ( -> ...Rc1+)} 45. Qf1 {[%emt 0:00:27] [#]} Rc1 $1 {[%emt 0:03:48]} 46. Re1 {[%emt 0:00:01]} Rc2 {[%emt 0:00:23]} 47. Qf4 {[%emt 0:00:34] [#]} Qf2 {[%emt 0:03:18]} (47... Rf2 $1 $19 {[%cal Rf2f4] has better winning chances.} 48. Qxh4 Qd4) 48. Qxf2 $17 {[%emt 0:00:13]} Rxf2 {[%emt 0:00:04] KR-KR} 49. Ra1 {[%emt 0:00:08]} Rxb2 {[%emt 0:00:06]} 50. Rxa4 {[%emt 0:00:04]} Kf6 {[%emt 0:00:20]} 51. Kg1 {[%emt 0:01:00]} Ke5 {[%emt 0:00:16]} (51... Rb7 $17 52. Ra8 Re7) 52. Ra7 $1 $15 {[%emt 0:00:57]} f5 {[%emt 0:06:29]} 53. Re7+ {[%emt 0:00:13] The position is equal.} Kd4 {[%emt 0:00:16]} 54. exf5 {[%emt 0:03:55]} gxf5 {[%emt 0:00:01]} 55. Rh7 {[%emt 0:00:06]} Kxd5 {[%emt 0:00:10]} 56. Rxh4 {[%emt 0:00:01]} Ke5 {[%emt 0:00:10]} 57. Rh8 {[%emt 0:03:39]} d5 {[%emt 0:00:17]} 58. Re8+ {[%emt 0:00:33]} Kf4 {[%emt 0:00:10]} 59. g4 {[%emt 0:00:52]} d4 {[%emt 0:01:44] White must now prevent ...Kg3.} 60. Kf1 {[%emt 0:00:58]} fxg4 {[%emt 0:01:19]} 61. hxg4 {[%emt 0:00:06]} Kxg4 {[%emt 0:00:17]} 62. Ke1 {[%emt 0:00:09]} Kf3 {[%emt 0:00:07]} 63. Kd1 {[%emt 0:00:12]} Kf4 {[%emt 0:00:25]} 64. Re7 {[%emt 0:00:09]} Kf3 {[%emt 0:00:21]} 65. Re8 {[%emt 0:00:04]} Rb3 {[%emt 0:00:03]} 66. Kd2 {[%emt 0:00:07]} Kf4 {[%emt 0:00:47]} 67. Rf8+ {[%emt 0:00:26]} Ke4 {[%emt 0:00:06]} 68. Re8+ {[%emt 0:00:03]} Kf4 {[%emt 0:00:06]} 69. Rf8+ {[%emt 0:00:03] White happily takes the draw.  Weighted Error Value: White=0.21 (precise) /Black=0.16 (very precise)} 1/2-1/2

[Event "2nd Serbia Open Masters 2022"]
[Site "Novi Sad"]
[Date "2022.07.01"]
[Round "4.39"]
[White "Badelka, Olga"]
[Black "Jain Kashish Manoj"]
[Result "1/2-1/2"]
[ECO "D47"]
[WhiteElo "2453"]
[BlackElo "2271"]
[Annotator "TA"]
[PlyCount "120"]
[EventDate "2022.06.28"]
[EventType "swiss"]
[EventCountry "SRB"]
[SourceTitle "playchess.com"]
[Source "ChessBase"]
[SourceQuality "1"]
[TimeControl "40/5400+30:900+30"]

{[%evp 12,120,0,8,33,26,34,0,0,-18,-19,-14,-11,-73,-63,-66,-60,-79,-82,-69,0,-32,-37,-37,-22,-42,-35,-31,-33,-36,-30,-34,-34,-35,-35,-31,-30,-29,-31,-25,0,0,4,0,0,0,8,12,49,52,66,64,64,57,126,133,144,20,18,16,16,18,27,14,38,20,39,21,12,14,13,12,50,8,50,43,41,32,32,27,35,25,25,25,37,37,44,44,52,0,52,0,52,52,75,0,0,0,0,0,0,0,49,6,8,0,0,0,0,-12,-4]} 1. d4 {[%emt 0:00:04]} d5 {[%emt 0:00:18]} 2. c4 {[%emt 0:00:08]} c6 {[%emt 0:00:04]} 3. Nc3 {[%emt 0:00:13]} Nf6 {[%emt 0:00:09]} 4. e3 {[%emt 0:00:08]} e6 {[%emt 0:00:24]} 5. Nf3 {[%emt 0:00:10]} Nbd7 {[%emt 0:00:17]} 6. Bd3 {[%emt 0:00:13]} dxc4 {[%emt 0:01:54]} 7. Bxc4 {[%emt 0:00:05]} Bd6 {[%emt 0:00:33] D47: Semi-Slav: Meran System.} (7... b5 $5 {[%cal Rb5c4]} 8. Be2 Bd6 $11) 8. e4 {[%emt 0:05:16]} b5 $1 {[%emt 0:13:23] was the old line (8...e5).} 9. Bd3 {[%emt 0:00:44]} e5 {[%emt 0:02:08]} 10. a4 {[%emt 0:03:43]} b4 {[%emt 0:14:29]} 11. Ne2 {[%emt 0:00:09]} O-O {[%emt 0:01:22] [#]} 12. dxe5 $146 {[%emt 0:03:03]} (12. O-O $11 {remains equal.}) ({Predecessor:} 12. O-O Re8 13. Qc2 Bb7 14. Bg5 h6 15. Bh4 Rc8 16. Rad1 Qb6 17. dxe5 Nxe5 18. Nxe5 Bxe5 {0-1 (35) Macsik,T (2297)-Nagy Hegyesi,B (2351) Hungary 2007}) 12... Nxe5 $17 {[%emt 0:00:09]} 13. Nxe5 {[%emt 0:00:04]} Bxe5 {[%emt 0:00:05]} 14. f4 {[%emt 0:00:17]} Bc7 {[%emt 0:03:50] And now ...Qd7 would win.} 15. e5 {[%emt 0:08:43]} Nd5 {[%emt 0:02:18]} ({Black should try} 15... Qd5 $15 16. exf6 Rd8 17. Bxh7+ Kxh7 18. Qxd5 Rxd5) 16. O-O {[%emt 0:02:30]} f6 {[%emt 0:11:24]} 17. Qc2 {[%emt 0:10:44][%csl LRc6,LRh7]} Kh8 {[%emt 0:07:09]} ({Resist} 17... Bb6+ 18. Kh1 $14) 18. Bd2 {[%emt 0:19:29]} Bg4 {[%emt 0:09:02]} 19. Ng3 $1 {[%emt 0:17:57]} fxe5 {[%emt 0:04:14]} 20. fxe5 {[%emt 0:00:06]} Bxe5 {[%emt 0:04:06]} 21. Rxf8+ {[%emt 0:01:22]} Qxf8 {[%emt 0:00:01]} 22. Qxc6 {[%emt 0:00:43]} Qd8 {[%emt 0:03:05]} 23. Be4 {[%emt 0:12:34]} Nb6 {[%emt 0:02:26]} 24. Rf1 {[%emt 0:03:57][%cal Od2g5]} Rc8 {[%emt 0:04:52]} ({But not} 24... Bxg3 25. hxg3 Rc8 26. Qb7 $1 $14) 25. Bg5 $1 {[%emt 0:00:11]} Qg8 {[%emt 0:11:20]} (25... Rxc6 $2 26. Bxd8 Rf6 27. Bxf6 gxf6 28. b3 $18) 26. Qb5 $40 {[%emt 0:02:36][%csl LRb4,LRe5][%mdl 128] White is up to no good.} Bxb2 {[%emt 0:02:05]} 27. Qxb4 {[%emt 0:01:18]} Bc3 {[%emt 0:00:08]} 28. Qd6 {[%emt 0:03:15]} Qe6 {[%emt 0:02:37]} 29. Qd3 {[%emt 0:03:48] Strongly threatening h3.} Qc4 {[%emt 0:00:31]} 30. Bxh7 {[%emt 0:00:58]} Qxd3 {[%emt 0:00:26]} 31. Bxd3 {[%emt 0:00:02]} Nxa4 {[%emt 0:00:01]} 32. Rf4 {[%emt 0:01:07][%csl LRa4,LRg4]} Nb2 {[%emt 0:01:06] [#]} (32... Nc5 $14) 33. Bg6 $1 $16 {[%emt 0:00:39]} Be6 {[%emt 0:00:30] [#]} 34. Rh4+ {[%emt 0:00:35]} (34. Re4 $1 $16 {[%cal Re4e6]} Bd7 35. Bf7) 34... Kg8 $11 {[%emt 0:00:00]} 35. Nf5 {[%emt 0:00:09]} Bxf5 {[%emt 0:01:00]} 36. Bxf5 {[%emt 0:00:04] Intending Be6+ and mate.} Re8 {[%emt 0:00:11] Prevents Be6+.} 37. Bh7+ {[%emt 0:01:06] This bishop pair is nice.} Kf7 {[%emt 0:00:01]} 38. Rf4+ {[%emt 0:01:20]} Bf6 {[%emt 0:00:02]} 39. Bxf6 {[%emt 0:00:00]} gxf6 $14 {[%emt 0:00:01][%mdl 4096] Endgame KRB-KRN} 40. Rb4 {[%emt 0:00:00]} Nd1 {[%emt 0:00:00][%cal Re8e1]} 41. h4 {[%emt 0:02:23]} Re7 {[%emt 0:03:56]} 42. Be4 {[%emt 0:05:50]} Kg7 {[%emt 0:02:26]} 43. Bf3 {[%emt 0:01:04]} Ne3 {[%emt 0:09:12]} 44. Kf2 {[%emt 0:00:11]} Nf5 $1 {[%emt 0:01:45]} 45. Rg4+ {[%emt 0:01:12]} Kh8 {[%emt 0:00:38]} 46. h5 {[%emt 0:01:48] Rf4 is the strong threat.} Nh6 {[%emt 0:01:12]} 47. Ra4 {[%emt 0:03:39]} Kg7 {[%emt 0:00:10]} 48. Kg3 {[%emt 0:00:21]} Nf7 {[%emt 0:01:10]} 49. Kf4 {[%emt 0:00:27]} Ng5 {[%emt 0:00:38]} 50. Bd5 {[%emt 0:02:42]} (50. g4 $14) 50... Kh6 {[%emt 0:01:08]} (50... Re5 $11) 51. g4 {[%emt 0:00:04]} (51. Ra6 $1 $14 Kg7 52. g4) 51... Nh3+ {[%emt 0:00:28]} (51... Re5 $11 52. Bg8 a5) 52. Kg3 {[%emt 0:00:21]} Re3+ {[%emt 0:00:32]} 53. Kg2 {[%emt 0:00:31]} (53. Kh4 $16) 53... Kg5 $11 {[%emt 0:00:30] Threatens to win with ...Nf4+.} 54. Bf3 {[%emt 0:00:31]} Nf4+ {[%emt 0:00:29]} 55. Kf2 {[%emt 0:02:26]} Re7 {[%emt 0:00:20]} 56. Ra5+ {[%emt 0:00:00]} Kh6 {[%emt 0:00:10]} (56... Re5 $11 {deserves consideration.} 57. Rxa7 f5) 57. Kg3 {[%emt 0:00:19]} (57. Ra3 $5 {[%cal Rf2g3]}) 57... Nd3 {[%emt 0:00:14] The position is equal.} 58. Ra6 {[%emt 0:00:28]} Kg5 {[%emt 0:00:25]} 59. Ra5+ {[%emt 0:00:06]} Ne5 {[%emt 0:00:15]} 60. Be4 {[%emt 0:00:46]} Rc7 {[%emt 0:00:34] Weighted Error Value: White=0.15 (very precise) /Black=0.12 (very precise)} 1/2-1/2